[Event "*** Titled Tuesday 3|2 Blitz"]
[Site "Chess.com"]
[Date "2015.11.03"]
[Round "8"]
[White "Fh2411"]
[Black "ZEN-22"]
[Result "1/2-1/2"]
[WhiteElo "2321"]
[BlackElo "2172"]
[TimeControl "180+2"]
[EndTime "18:37:14 PST"]
[Termination "Game drawn by stalemate"]

1. d4 {[%clk 0:03:01.9]} 1... e6 {[%clk 0:02:54]} 2. Nf3 {[%clk 0:03:02.2]} 2...
c5 {[%clk 0:02:55.5]} 3. c3 {[%clk 0:02:57.9]} 3... Nf6 {[%clk 0:02:55.8]} 4.
Bf4 {[%clk 0:02:58.2]} 4... Nc6 {[%clk 0:02:53.3]} 5. e3 {[%clk 0:02:57.8]} 5...
b5 {[%clk 0:02:53.2]} 6. Bxb5 {[%clk 0:02:44]} 6... Qb6 {[%clk 0:02:54.6]} 7. a4
{[%clk 0:02:34.6]} 7... a6 {[%clk 0:02:55.2]} 8. Bxc6 {[%clk 0:02:34.5]} 8...
dxc6 {[%clk 0:02:56]} 9. Ra2 {[%clk 0:02:29.8]} 9... cxd4 {[%clk 0:02:55.1]} 10.
exd4 {[%clk 0:02:29.5]} 10... c5 {[%clk 0:02:54.6]} 11. O-O {[%clk 0:02:29.8]}
11... cxd4 {[%clk 0:02:56]} 12. Nxd4 {[%clk 0:02:27.9]} 12... Bb7 {[%clk
0:02:56.6]} 13. Nd2 {[%clk 0:02:21.5]} 13... Bc5 {[%clk 0:02:53]} 14. Nc4 {[%clk
0:02:18.7]} 14... Qd8 {[%clk 0:02:54.5]} 15. Nb3 {[%clk 0:02:08.6]} 15... Bd5
{[%clk 0:02:48.1]} 16. Qe2 {[%clk 0:01:59.7]} 16... Be7 {[%clk 0:02:48]} 17.
Raa1 {[%clk 0:01:44.1]} 17... Rc8 {[%clk 0:02:48.9]} 18. Ncd2 {[%clk 0:01:35.4]}
18... Ba8 {[%clk 0:02:48.6]} 19. Qxa6 {[%clk 0:01:17.1]} 19... O-O {[%clk
0:02:48.7]} 20. Qe2 {[%clk 0:01:00.5]} 20... Qd5 {[%clk 0:02:47.7]} 21. f3
{[%clk 0:01:00.5]} 21... Rfd8 {[%clk 0:02:44.9]} 22. Kh1 {[%clk 0:00:40.4]}
22... Nh5 {[%clk 0:02:45.9]} 23. Be3 {[%clk 0:00:36.2]} 23... Bd6 {[%clk
0:02:47.2]} 24. Nd4 {[%clk 0:00:33.8]} 24... Qe5 {[%clk 0:02:46.9]} 25. Bg1
{[%clk 0:00:28.7]} 25... Qf4 {[%clk 0:02:42.3]} 26. Ne4 {[%clk 0:00:23.6]} 26...
Qh4 {[%clk 0:02:32.9]} 27. Qf2 {[%clk 0:00:18.9]} 27... Qxf2 {[%clk 0:02:29.4]}
28. Bxf2 {[%clk 0:00:19.6]} 28... Be5 {[%clk 0:02:30.5]} 29. a5 {[%clk 0:00:18]}
29... f5 {[%clk 0:02:30.6]} 30. Ng5 {[%clk 0:00:16.2]} 30... Nf4 {[%clk
0:02:25.7]} 31. Ngxe6 {[%clk 0:00:17.1]} 31... Nxe6 {[%clk 0:02:26.1]} 32. Nxe6
{[%clk 0:00:19]} 32... Rd2 {[%clk 0:02:27.7]} 33. Bd4 {[%clk 0:00:18.3]} 33...
Bd6 {[%clk 0:02:27.1]} 34. b4 {[%clk 0:00:18.3]} 34... g5 {[%clk 0:02:26]} 35.
Nxg5 {[%clk 0:00:19.1]} 35... Bxb4 {[%clk 0:02:20.6]} 36. cxb4 {[%clk
0:00:19.1]} 36... Rxd4 {[%clk 0:02:21.3]} 37. b5 {[%clk 0:00:20.5]} 37... Rc5
{[%clk 0:02:19.6]} 38. b6 {[%clk 0:00:20.9]} 38... Rb5 {[%clk 0:02:20.6]} 39.
Ne6 {[%clk 0:00:21.1]} 39... Rdd5 {[%clk 0:02:03.3]} 40. Nc7 {[%clk 0:00:21.9]}
40... Rxa5 {[%clk 0:02:04.6]} 41. Nxa8 {[%clk 0:00:22.4]} 41... Rxa1 {[%clk
0:02:03.9]} 42. Rxa1 {[%clk 0:00:23]} 42... Rb5 {[%clk 0:02:04.5]} 43. h4 {[%clk
0:00:23.9]} 43... Kg7 {[%clk 0:02:05.1]} 44. Ra7+ {[%clk 0:00:24.3]} 44... Kg6
{[%clk 0:02:06.1]} 45. Rd7 {[%clk 0:00:22.7]} 45... h6 {[%clk 0:02:03.9]} 46. b7
{[%clk 0:00:22.4]} 46... Kh5 {[%clk 0:02:05.3]} 47. Rh7 {[%clk 0:00:21.1]} 47...
Kxh4 {[%clk 0:02:04.8]} 48. Kh2 {[%clk 0:00:22.4]} 48... h5 {[%clk 0:02:04.1]}
49. Rg7 {[%clk 0:00:19.5]} 49... f4 {[%clk 0:02:04.8]} 50. Nc7 {[%clk
0:00:16.8]} 50... Rxb7 {[%clk 0:02:02.5]} 51. Ne6 {[%clk 0:00:18.4]} 51... Rb4
{[%clk 0:02:02.2]} 52. Nf8 {[%clk 0:00:18]} 52... Rb1 {[%clk 0:01:57.4]} 53. Ne6
{[%clk 0:00:17]} 53... Rh1+ {[%clk 0:01:56.8]} 54. Kxh1 {[%clk 0:00:16.1]}
1/2-1/2

[Event "*** Titled Tuesday 3|2 Blitz"]
[Site "Chess.com"]
[Date "2015.11.03"]
[Round "8"]
[White "Malev212"]
[Black "Boryboy"]
[Result "0-1"]
[WhiteElo "2324"]
[BlackElo "2515"]
[TimeControl "180+2"]
[EndTime "18:38:18 PST"]
[Termination "Boryboy won by checkmate"]

1. Nf3 {[%clk 0:03:01.9]} 1... Nf6 {[%clk 0:03:00]} 2. c4 {[%clk 0:03:02.2]}
2... e6 {[%clk 0:03:00.1]} 3. g3 {[%clk 0:02:56.7]} 3... d5 {[%clk 0:03:00.6]}
4. Bg2 {[%clk 0:02:54.5]} 4... dxc4 {[%clk 0:03:01.9]} 5. Qa4+ {[%clk
0:02:53.3]} 5... c6 {[%clk 0:03:02.4]} 6. Qxc4 {[%clk 0:02:52.6]} 6... b5 {[%clk
0:03:02.7]} 7. Qb3 {[%clk 0:02:49.7]} 7... Bb7 {[%clk 0:03:01.1]} 8. O-O {[%clk
0:02:50.5]} 8... Be7 {[%clk 0:02:53.9]} 9. d4 {[%clk 0:02:51.1]} 9... O-O {[%clk
0:02:50.5]} 10. Rd1 {[%clk 0:02:50.4]} 10... Nbd7 {[%clk 0:02:48.6]} 11. Nc3
{[%clk 0:02:45.9]} 11... a6 {[%clk 0:02:40.7]} 12. Ne5 {[%clk 0:02:46.4]} 12...
Nd5 {[%clk 0:02:31.9]} 13. Nxd7 {[%clk 0:02:17.7]} 13... Qxd7 {[%clk 0:02:32.3]}
14. Ne4 {[%clk 0:02:18.4]} 14... a5 {[%clk 0:02:18.1]} 15. Bd2 {[%clk
0:02:08.1]} 15... f5 {[%clk 0:01:51.1]} 16. Nc5 {[%clk 0:01:52.7]} 16... Bxc5
{[%clk 0:01:51.6]} 17. dxc5 {[%clk 0:01:53.6]} 17... Qe7 {[%clk 0:01:43.1]} 18.
Qc2 {[%clk 0:01:51.3]} 18... h6 {[%clk 0:01:13.3]} 19. Rac1 {[%clk 0:01:35.2]}
19... b4 {[%clk 0:01:04.9]} 20. e4 {[%clk 0:01:32.4]} 20... fxe4 {[%clk
0:01:03.4]} 21. Qxe4 {[%clk 0:01:32.8]} 21... Qf6 {[%clk 0:01:00.8]} 22. Be3
{[%clk 0:01:25.1]} 22... Nxe3 {[%clk 0:00:53.5]} 23. Qxe3 {[%clk 0:01:15]} 23...
Qxb2 {[%clk 0:00:53]} 24. Qxe6+ {[%clk 0:01:09]} 24... Kh8 {[%clk 0:00:51.1]}
25. Qe1 {[%clk 0:00:55.3]} 25... Rae8 {[%clk 0:00:44.9]} 26. Qd2 {[%clk
0:00:54.4]} 26... Re2 {[%clk 0:00:45.7]} 27. Qxb2 {[%clk 0:00:49.1]} 27... Rxb2
{[%clk 0:00:47.6]} 28. Rd7 {[%clk 0:00:45.1]} 28... Bc8 {[%clk 0:00:45.3]} 29.
Rc7 {[%clk 0:00:42.7]} 29... Rxa2 {[%clk 0:00:43.1]} 30. Bxc6 {[%clk 0:00:39.9]}
30... b3 {[%clk 0:00:30.7]} 31. Be4 {[%clk 0:00:29.7]} 31... Re2 {[%clk
0:00:22.2]} 32. Bd3 {[%clk 0:00:19.2]} 32... Rd2 {[%clk 0:00:20.6]} 33. Bb1
{[%clk 0:00:15.4]} 33... a4 {[%clk 0:00:14.8]} 34. Ra7 {[%clk 0:00:15.3]} 34...
b2 {[%clk 0:00:15.8]} 35. Re1 {[%clk 0:00:15.2]} 35... Bd7 {[%clk 0:00:09.2]}
36. Kg2 {[%clk 0:00:05.7]} 36... Bc6+ {[%clk 0:00:10.1]} 37. Kh3 {[%clk
0:00:05.6]} 37... Rdxf2 {[%clk 0:00:10.2]} 38. Rc7 {[%clk 0:00:04]} 38... Bg2+
{[%clk 0:00:10.4]} 39. Kh4 {[%clk 0:00:04.2]} 39... a3 {[%clk 0:00:11.7]} 40. c6
{[%clk 0:00:04.1]} 40... Bd5 {[%clk 0:00:11.6]} 41. Ree7 {[%clk 0:00:02.6]}
41... Rxh2+ {[%clk 0:00:12.2]} 42. Kg4 {[%clk 0:00:03.6]} 42... Bf3# {[%clk
0:00:13.4]} 0-1

[Event "*** Titled Tuesday 3|2 Blitz"]
[Site "Chess.com"]
[Date "2015.11.03"]
[Round "8"]
[White "Penguininja"]
[Black "WanderingPuppet"]
[Result "1/2-1/2"]
[WhiteElo "2160"]
[BlackElo "2159"]
[TimeControl "180+2"]
[EndTime "18:43:56 PST"]
[Termination "Game drawn by 50-move rule"]

1. d4 {[%clk 0:03:01.9]} 1... h6 {[%clk 0:03:01.9]} 2. Nf3 {[%clk 0:03:02.6]}
2... Nf6 {[%clk 0:03:03.6]} 3. c4 {[%clk 0:03:03.4]} 3... d6 {[%clk 0:03:05.5]}
4. Nc3 {[%clk 0:03:04.6]} 4... Nbd7 {[%clk 0:03:07.4]} 5. Bf4 {[%clk 0:02:57.8]}
5... e5 {[%clk 0:03:09.3]} 6. dxe5 {[%clk 0:02:57.9]} 6... Nh5 {[%clk
0:03:10.3]} 7. e6 {[%clk 0:02:51.6]} 7... Nxf4 {[%clk 0:03:06.7]} 8. exd7+
{[%clk 0:02:52.5]} 8... Bxd7 {[%clk 0:03:00.8]} 9. e3 {[%clk 0:02:53.8]} 9...
Ne6 {[%clk 0:03:00.1]} 10. Bd3 {[%clk 0:02:52.2]} 10... Be7 {[%clk 0:03:00.6]}
11. O-O {[%clk 0:02:48.6]} 11... O-O {[%clk 0:02:48.7]} 12. Rc1 {[%clk 0:02:48]}
12... Nc5 {[%clk 0:02:42.7]} 13. Bb1 {[%clk 0:02:48.2]} 13... Be6 {[%clk
0:02:37.5]} 14. Qc2 {[%clk 0:02:35.2]} 14... g6 {[%clk 0:02:31.7]} 15. b3 {[%clk
0:02:34.5]} 15... Bf5 {[%clk 0:02:25.5]} 16. e4 {[%clk 0:02:32.8]} 16... Bg4
{[%clk 0:02:23.7]} 17. Ne1 {[%clk 0:02:26.2]} 17... Bf6 {[%clk 0:02:23.7]} 18.
f3 {[%clk 0:02:26.7]} 18... Bd7 {[%clk 0:02:13]} 19. Nd5 {[%clk 0:02:23.7]}
19... Bd4+ {[%clk 0:02:08.1]} 20. Kh1 {[%clk 0:02:23.4]} 20... c6 {[%clk
0:02:09.6]} 21. Rd1 {[%clk 0:02:13.9]} 21... Be5 {[%clk 0:02:02.3]} 22. Ne3
{[%clk 0:02:07.2]} 22... Qh4 {[%clk 0:01:58.4]} 23. g4 {[%clk 0:01:41.3]} 23...
Ne6 {[%clk 0:01:49]} 24. Nd3 {[%clk 0:01:30.2]} 24... Nd4 {[%clk 0:01:35.2]} 25.
Qg2 {[%clk 0:01:17.9]} 25... Rad8 {[%clk 0:01:23.8]} 26. c5 {[%clk 0:00:58.3]}
26... Bc8 {[%clk 0:01:06.2]} 27. Nc4 {[%clk 0:00:54.9]} 27... Qe7 {[%clk
0:00:36.9]} 28. f4 {[%clk 0:00:48.1]} 28... Bg7 {[%clk 0:00:33.9]} 29. cxd6
{[%clk 0:00:46.7]} 29... Qh4 {[%clk 0:00:21.5]} 30. Nf2 {[%clk 0:00:39.4]} 30...
b5 {[%clk 0:00:18.6]} 31. e5 {[%clk 0:00:40.5]} 31... Ne6 {[%clk 0:00:07.7]} 32.
Na5 {[%clk 0:00:39.2]} 32... Nxf4 {[%clk 0:00:08.7]} 33. Qf3 {[%clk 0:00:39.9]}
33... Bxe5 {[%clk 0:00:07.5]} 34. Nxc6 {[%clk 0:00:35.8]} 34... Bxd6 {[%clk
0:00:06.5]} 35. Nxd8 {[%clk 0:00:36.2]} 35... Rxd8 {[%clk 0:00:08.4]} 36. Be4
{[%clk 0:00:36.5]} 36... Qg5 {[%clk 0:00:04.4]} 37. h3 {[%clk 0:00:24.2]} 37...
Be6 {[%clk 0:00:04.8]} 38. Nd3 {[%clk 0:00:23.7]} 38... Nxd3 {[%clk 0:00:04.7]}
39. Rxd3 {[%clk 0:00:24.5]} 39... Qe5 {[%clk 0:00:04.9]} 40. Rd2 {[%clk
0:00:23.2]} 40... Kg7 {[%clk 0:00:04.6]} 41. Rfd1 {[%clk 0:00:23.4]} 41... Bc7
{[%clk 0:00:05.3]} 42. Kg2 {[%clk 0:00:19.6]} 42... Qh2+ {[%clk 0:00:05.6]} 43.
Kf1 {[%clk 0:00:20.5]} 43... Rxd2 {[%clk 0:00:06.8]} 44. Qc3+ {[%clk 0:00:21.2]}
44... Be5 {[%clk 0:00:05]} 45. Qxd2 {[%clk 0:00:22.3]} 45... Qxh3+ {[%clk
0:00:06.3]} 46. Qg2 {[%clk 0:00:23.2]} 46... Qxg4 {[%clk 0:00:04]} 47. Qxg4
{[%clk 0:00:23.2]} 47... Bxg4 {[%clk 0:00:05.9]} 48. Rd5 {[%clk 0:00:23.7]}
48... Bf6 {[%clk 0:00:03.3]} 49. Rxb5 {[%clk 0:00:23.7]} 49... h5 {[%clk
0:00:05]} 50. Rb7 {[%clk 0:00:23.9]} 50... Be6 {[%clk 0:00:03.1]} 51. Rxa7
{[%clk 0:00:22.4]} 51... h4 {[%clk 0:00:05]} 52. Rc7 {[%clk 0:00:17.7]} 52... h3
{[%clk 0:00:06]} 53. Rc2 {[%clk 0:00:18.4]} 53... Be5 {[%clk 0:00:06.2]} 54. b4
{[%clk 0:00:18.7]} 54... f5 {[%clk 0:00:06.4]} 55. Bh1 {[%clk 0:00:18.9]} 55...
g5 {[%clk 0:00:06.9]} 56. b5 {[%clk 0:00:20]} 56... g4 {[%clk 0:00:07.8]} 57. b6
{[%clk 0:00:20.3]} 57... g3 {[%clk 0:00:07.2]} 58. b7 {[%clk 0:00:21.5]} 58...
Kf6 {[%clk 0:00:06.9]} 59. Bf3 {[%clk 0:00:20.7]} 59... g2+ {[%clk 0:00:03.3]}
60. Bxg2 {[%clk 0:00:20.2]} 60... hxg2+ {[%clk 0:00:05.2]} 61. Kxg2 {[%clk
0:00:22.1]} 61... Bd5+ {[%clk 0:00:04.6]} 62. Kf2 {[%clk 0:00:22.5]} 62... Bxb7
{[%clk 0:00:06.1]} 63. Rc1 {[%clk 0:00:22.1]} 63... Bd5 {[%clk 0:00:06.1]} 64.
a4 {[%clk 0:00:20.9]} 64... Bd4+ {[%clk 0:00:06.4]} 65. Ke2 {[%clk 0:00:21]}
65... Ke5 {[%clk 0:00:07.7]} 66. Rc8 {[%clk 0:00:21.1]} 66... f4 {[%clk
0:00:06.9]} 67. Re8+ {[%clk 0:00:22]} 67... Kd6 {[%clk 0:00:07.3]} 68. a5 {[%clk
0:00:23.3]} 68... Bc6 {[%clk 0:00:05.6]} 69. Rd8+ {[%clk 0:00:21.3]} 69... Kc5
{[%clk 0:00:07]} 70. a6 {[%clk 0:00:20.9]} 70... Bb5+ {[%clk 0:00:05.3]} 71. Kf3
{[%clk 0:00:22]} 71... Bxa6 {[%clk 0:00:06.3]} 72. Kxf4 {[%clk 0:00:22.9]} 72...
Bc4 {[%clk 0:00:06.5]} 73. Ke4 {[%clk 0:00:22.2]} 73... Bc3 {[%clk 0:00:06.2]}
74. Rc8+ {[%clk 0:00:22.6]} 74... Kb4 {[%clk 0:00:07.5]} 75. Rb8+ {[%clk
0:00:23.1]} 75... Kc5 {[%clk 0:00:07.4]} 76. Rc8+ {[%clk 0:00:24.1]} 76... Kb4
{[%clk 0:00:08.8]} 77. Ke3 {[%clk 0:00:25.3]} 77... Bf6 {[%clk 0:00:07.8]} 78.
Kd2 {[%clk 0:00:24.7]} 78... Bg5+ {[%clk 0:00:07.9]} 79. Kc2 {[%clk 0:00:25.9]}
79... Bf6 {[%clk 0:00:06.5]} 80. Rb8+ {[%clk 0:00:26]} 80... Kc5 {[%clk
0:00:06.8]} 81. Rf8 {[%clk 0:00:25.2]} 81... Be5 {[%clk 0:00:05.7]} 82. Rf5
{[%clk 0:00:25.3]} 82... Kd6 {[%clk 0:00:06.8]} 83. Rf8 {[%clk 0:00:25.5]} 83...
Be6 {[%clk 0:00:07.3]} 84. Ra8 {[%clk 0:00:24.4]} 84... Bd5 {[%clk 0:00:07.8]}
85. Ra6+ {[%clk 0:00:24.7]} 85... Bc6 {[%clk 0:00:08.8]} 86. Kd3 {[%clk
0:00:25.8]} 86... Kc5 {[%clk 0:00:06.7]} 87. Ra5+ {[%clk 0:00:26.2]} 87... Kd6
{[%clk 0:00:07.1]} 88. Kc4 {[%clk 0:00:27.7]} 88... Bg3 {[%clk 0:00:05.6]} 89.
Rg5 {[%clk 0:00:26.8]} 89... Be5 {[%clk 0:00:05.3]} 90. Rg6+ {[%clk 0:00:23.9]}
90... Kd7 {[%clk 0:00:06.3]} 91. Kc5 {[%clk 0:00:25]} 91... Be4 {[%clk
0:00:06.8]} 92. Ra6 {[%clk 0:00:20.5]} 92... Ke7 {[%clk 0:00:06.3]} 93. Ra7+
{[%clk 0:00:19.9]} 93... Ke6 {[%clk 0:00:06.8]} 94. Ra6+ {[%clk 0:00:21.2]}
94... Kf5 {[%clk 0:00:08.1]} 95. Kc4 {[%clk 0:00:21.6]} 95... Bf3 {[%clk
0:00:08]} 96. Kd3 {[%clk 0:00:21.3]} 96... Bg2 {[%clk 0:00:08.3]} 97. Ke3 {[%clk
0:00:20.9]} 97... Bf4+ {[%clk 0:00:08.2]} 98. Kf2 {[%clk 0:00:21.8]} 98... Bd5
{[%clk 0:00:08.5]} 99. Ra5 {[%clk 0:00:23.4]} 99... Ke5 {[%clk 0:00:09.6]} 100.
Rb5 {[%clk 0:00:24.4]} 100... Bd2 {[%clk 0:00:09.4]} 101. Ke2 {[%clk 0:00:25.1]}
101... Bc3 {[%clk 0:00:08]} 102. Kd3 {[%clk 0:00:26.1]} 102... Be1 {[%clk
0:00:06.6]} 103. Rc5 {[%clk 0:00:24.7]} 103... Bf2 {[%clk 0:00:06.3]} 104. Ra5
{[%clk 0:00:22.9]} 104... Kd6 {[%clk 0:00:05.5]} 105. Ra6+ {[%clk 0:00:22.9]}
105... Ke5 {[%clk 0:00:05.9]} 106. Rh6 {[%clk 0:00:24.1]} 106... Bg3 {[%clk
0:00:06.1]} 107. Rh5+ {[%clk 0:00:25.3]} 107... Kd6 {[%clk 0:00:07]} 108. Kd4
{[%clk 0:00:24.6]} 108... Bf2+ {[%clk 0:00:06.9]} 109. Kd3 {[%clk 0:00:25.9]}
109... Bg1 {[%clk 0:00:06.6]} 110. Rg5 {[%clk 0:00:25.4]} 110... Bf2 {[%clk
0:00:07]} 111. Rg6+ {[%clk 0:00:26.9]} 111... Kc5 {[%clk 0:00:07.8]} 112. Rg5
{[%clk 0:00:27.9]} 112... Kc6 {[%clk 0:00:05.6]} 113. Rf5 {[%clk 0:00:27.7]}
113... Bc5 {[%clk 0:00:05.9]} 114. Rf6+ {[%clk 0:00:28.4]} 114... Kd7 {[%clk
0:00:06.1]} 115. Rh6 {[%clk 0:00:27.3]} 115... Bd6 {[%clk 0:00:07.1]} 116. Kd4
{[%clk 0:00:27.7]} 116... Bf3 {[%clk 0:00:07.4]} 117. Rf6 {[%clk 0:00:27.3]}
117... Bd1 {[%clk 0:00:07]} 118. Kd5 {[%clk 0:00:26.9]} 118... Bb3+ {[%clk
0:00:07.8]} 119. Kd4 {[%clk 0:00:28.4]} 119... Be6 {[%clk 0:00:07.6]} 120. Rh6
{[%clk 0:00:28.8]} 120... Ba2 {[%clk 0:00:07.7]} 121. Rh7+ {[%clk 0:00:29.8]}
121... Kc6 {[%clk 0:00:09.1]} 122. Rh2 {[%clk 0:00:29.7]} 122... Be6 {[%clk
0:00:09.3]} 123. Rc2+ {[%clk 0:00:29.8]} 1/2-1/2

[Event "*** Titled Tuesday 3|2 Blitz"]
[Site "Chess.com"]
[Date "2015.11.03"]
[Round "9"]
[White "Fh2411"]
[Black "kikydu96"]
[Result "1-0"]
[WhiteElo "2327"]
[BlackElo "2214"]
[TimeControl "180+2"]
[EndTime "18:48:38 PST"]
[Termination "Fh2411 won by resignation"]

1. d4 {[%clk 0:03:01.9]} 1... d5 {[%clk 0:03:00.4]} 2. Nf3 {[%clk 0:03:01.2]}
2... Nf6 {[%clk 0:02:57]} 3. c4 {[%clk 0:02:59.2]} 3... c6 {[%clk 0:02:53.4]} 4.
Nbd2 {[%clk 0:02:56.8]} 4... g6 {[%clk 0:02:52]} 5. g3 {[%clk 0:02:52.3]} 5...
Bg7 {[%clk 0:02:50.6]} 6. Bg2 {[%clk 0:02:53.8]} 6... O-O {[%clk 0:02:50.7]} 7.
O-O {[%clk 0:02:54]} 7... Nbd7 {[%clk 0:02:51.5]} 8. Qc2 {[%clk 0:02:44.5]} 8...
Re8 {[%clk 0:02:49.3]} 9. b3 {[%clk 0:02:41.6]} 9... e6 {[%clk 0:02:23.1]} 10.
Bb2 {[%clk 0:02:38.4]} 10... Ne4 {[%clk 0:02:22.7]} 11. Nxe4 {[%clk 0:02:35.9]}
11... dxe4 {[%clk 0:02:23.7]} 12. Qxe4 {[%clk 0:02:37.3]} 12... c5 {[%clk
0:02:25.2]} 13. Qc2 {[%clk 0:02:34.3]} 13... Qb6 {[%clk 0:02:20.2]} 14. Rfd1
{[%clk 0:02:32.5]} 14... Nf6 {[%clk 0:02:16.4]} 15. Ne5 {[%clk 0:02:22.8]} 15...
cxd4 {[%clk 0:02:14]} 16. Bxd4 {[%clk 0:02:22.9]} 16... Qc7 {[%clk 0:02:15.2]}
17. Qb2 {[%clk 0:02:20]} 17... Rb8 {[%clk 0:02:06.3]} 18. Nxg6 {[%clk
0:02:09.1]} 18... hxg6 {[%clk 0:02:01.1]} 19. Bxf6 {[%clk 0:01:45.7]} 19... Bxf6
{[%clk 0:02:00.8]} 20. Qxf6 {[%clk 0:01:47.6]} 20... Bd7 {[%clk 0:02:02.3]} 21.
Rd4 {[%clk 0:01:43.8]} 21... Qd8 {[%clk 0:01:47.2]} 22. Qxd8 {[%clk 0:01:43.1]}
22... Rexd8 {[%clk 0:01:47.3]} 23. Rad1 {[%clk 0:01:43.1]} 23... Kf8 {[%clk
0:01:48.9]} 24. Rxd7 {[%clk 0:01:43.5]} 1-0

[Event "*** Titled Tuesday 3|2 Blitz"]
[Site "Chess.com"]
[Date "2015.11.03"]
[Round "9"]
[White "Viaje"]
[Black "chesstatour"]
[Result "1/2-1/2"]
[WhiteElo "2197"]
[BlackElo "1927"]
[TimeControl "180+2"]
[EndTime "18:49:16 PST"]
[Termination "Game drawn by agreement"]

1. d4 {[%clk 0:03:01.9]} 1... f5 {[%clk 0:02:58.4]} 2. Qd3 {[%clk 0:03:01.6]}
2... d5 {[%clk 0:02:55.1]} 3. c4 {[%clk 0:03:01]} 3... c6 {[%clk 0:02:55]} 4.
Nf3 {[%clk 0:03:02.2]} 4... Nf6 {[%clk 0:02:55.6]} 5. Bf4 {[%clk 0:03:03.7]}
5... e6 {[%clk 0:02:57]} 6. Nc3 {[%clk 0:03:05]} 6... Bd6 {[%clk 0:02:58.3]} 7.
Bxd6 {[%clk 0:03:05.2]} 7... Qxd6 {[%clk 0:02:59]} 8. e3 {[%clk 0:03:06.9]} 8...
Nbd7 {[%clk 0:02:59.1]} 9. Be2 {[%clk 0:03:07.6]} 9... O-O {[%clk 0:03:00.1]}
10. O-O {[%clk 0:03:09.2]} 10... Ne4 {[%clk 0:02:57.1]} 11. c5 {[%clk
0:03:09.5]} 11... Qe7 {[%clk 0:02:56]} 12. b4 {[%clk 0:03:10.8]} 12... Rf6
{[%clk 0:02:49.2]} 13. Ne5 {[%clk 0:03:05.5]} 13... Nxc3 {[%clk 0:02:40.6]} 14.
Qxc3 {[%clk 0:03:06]} 14... Rh6 {[%clk 0:02:32.9]} 15. f3 {[%clk 0:02:04.5]}
15... Qh4 {[%clk 0:02:16.6]} 16. h3 {[%clk 0:02:04.6]} 16... Qg3 {[%clk
0:02:17.1]} 17. Kh1 {[%clk 0:01:56.1]} 17... Nxe5 {[%clk 0:02:06.1]} 18. dxe5
{[%clk 0:01:56.1]} 18... Bd7 {[%clk 0:01:52.9]} 19. f4 {[%clk 0:01:56.9]} 19...
Rxh3+ {[%clk 0:00:46.3]} 20. gxh3 {[%clk 0:01:58.8]} 20... Qxh3+ {[%clk
0:00:46.5]} 21. Kg1 {[%clk 0:01:59.1]} 1/2-1/2

[Event "*** Titled Tuesday 3|2 Blitz"]
[Site "Chess.com"]
[Date "2015.11.03"]
[Round "9"]
[White "wanyaland"]
[Black "Noukii"]
[Result "0-1"]
[WhiteElo "2242"]
[BlackElo "2608"]
[TimeControl "180+2"]
[EndTime "18:52:15 PST"]
[Termination "Noukii won by resignation"]

1. d4 {[%clk 0:01:43]} 1... d5 {[%clk 0:02:59]} 2. c4 {[%clk 0:01:44.9]} 2... c6
{[%clk 0:03:00]} 3. Nc3 {[%clk 0:01:45.9]} 3... Nf6 {[%clk 0:03:01.3]} 4. Nf3
{[%clk 0:01:47.2]} 4... dxc4 {[%clk 0:03:01.9]} 5. a4 {[%clk 0:01:47.3]} 5...
Bg4 {[%clk 0:03:03.4]} 6. e3 {[%clk 0:01:48.3]} 6... e5 {[%clk 0:03:03.4]} 7.
dxe5 {[%clk 0:01:44.6]} 7... Qxd1+ {[%clk 0:03:03.3]} 8. Nxd1 {[%clk 0:01:46.5]}
8... Nfd7 {[%clk 0:03:00.2]} 9. Bxc4 {[%clk 0:01:42.8]} 9... Bxf3 {[%clk
0:02:57.2]} 10. gxf3 {[%clk 0:01:42.2]} 10... Nxe5 {[%clk 0:02:59.1]} 11. Be2
{[%clk 0:01:43.7]} 11... Bb4+ {[%clk 0:03:00.8]} 12. Bd2 {[%clk 0:01:42.2]}
12... Bxd2+ {[%clk 0:03:01]} 13. Kxd2 {[%clk 0:01:43.7]} 13... Nbd7 {[%clk
0:02:54.9]} 14. f4 {[%clk 0:01:39.5]} 14... Ng6 {[%clk 0:02:56]} 15. Nc3 {[%clk
0:01:39]} 15... Nc5 {[%clk 0:02:53.3]} 16. Kc2 {[%clk 0:01:40]} 16... a5 {[%clk
0:02:54.9]} 17. h4 {[%clk 0:01:38.5]} 17... Ne7 {[%clk 0:02:48.9]} 18. Rag1
{[%clk 0:01:37.6]} 18... g6 {[%clk 0:02:45.6]} 19. h5 {[%clk 0:01:36.4]} 19...
O-O-O {[%clk 0:02:47.1]} 20. Rg5 {[%clk 0:01:33.3]} 20... b6 {[%clk 0:02:42]}
21. Bf3 {[%clk 0:01:24.9]} 21... Kc7 {[%clk 0:02:43]} 22. Re5 {[%clk 0:01:24]}
22... Nf5 {[%clk 0:02:34.7]} 23. Bg4 {[%clk 0:01:14.1]} 23... f6 {[%clk
0:02:35.4]} 24. Rxf5 {[%clk 0:01:10.2]} 24... gxf5 {[%clk 0:02:36.1]} 25. Bxf5
{[%clk 0:01:11.7]} 25... h6 {[%clk 0:02:37.3]} 26. Rg1 {[%clk 0:01:08.3]} 26...
Rhg8 {[%clk 0:02:37.3]} 27. Bg6 {[%clk 0:01:09.3]} 27... Rd7 {[%clk 0:02:29.8]}
28. Re1 {[%clk 0:01:06.6]} 28... Na6 {[%clk 0:02:25.7]} 29. e4 {[%clk
0:01:01.7]} 29... Nb4+ {[%clk 0:02:25.2]} 30. Kb3 {[%clk 0:01:02.7]} 30... Rd2
{[%clk 0:02:24.5]} 31. f3 {[%clk 0:00:56.1]} 31... Nd3 {[%clk 0:02:23.7]} 32.
Rb1 {[%clk 0:00:37.3]} 32... Nxf4 {[%clk 0:02:20.7]} 33. Rc1 {[%clk 0:00:34.6]}
33... Nd3 {[%clk 0:02:08.6]} 34. Rg1 {[%clk 0:00:20.1]} 34... Rxb2+ {[%clk
0:02:03.3]} 35. Ka3 {[%clk 0:00:21]} 35... Rc2 {[%clk 0:02:04]} 36. Kb3 {[%clk
0:00:20.1]} 36... Rf2 {[%clk 0:02:04.8]} 37. Rg3 {[%clk 0:00:18.8]} 37... Rd8
{[%clk 0:01:54.3]} 38. Bf5 {[%clk 0:00:16.7]} 38... Nc5+ {[%clk 0:01:53.5]} 39.
Kc4 {[%clk 0:00:16.2]} 39... Rfd2 {[%clk 0:01:53.2]} 40. Rg7+ {[%clk 0:00:16.4]}
40... Kb8 {[%clk 0:01:54.5]} 41. Nd5 {[%clk 0:00:13.2]} 41... Rc2+ {[%clk
0:01:46.6]} 42. Kd4 {[%clk 0:00:12.4]} 42... cxd5 {[%clk 0:01:47]} 43. exd5
{[%clk 0:00:09]} 43... Rd2+ {[%clk 0:01:48]} 44. Kc4 {[%clk 0:00:09.9]} 44...
R2xd5 {[%clk 0:01:49.5]} 45. Rf7 {[%clk 0:00:08.4]} 45... Rxf5 {[%clk
0:01:50.2]} 0-1